Cogmind - Beta 16 @@@ ROGUE MODE // 2026.01.08 @ 08:29:41 Player: PE-P51 Result: Destroyed by as-09773 with Assembled F-torch Performance ------------- Evolutions (0) 0 Regions Visited (4) 800 Robots Destroyed (32) 160 Value Destroyed (480) 480 Prototype IDs (23) 460 Alien Tech Used (0) 0 Bonus (300) 300 TOTAL SCORE: 2200 Bonus ------- Aligned with FarCom 300 Cogmind --------- Core Integrity 0/250 Matter 282/300 Energy 74/100 System Corruption 8% Temperature Cool (20) Movement Core (50) Location -9/Mines Parts ------- > --- POWER (1) -------- (None) > --- PROPULSION (2) --- (None) > --- UTILITY (2) ------ (None) > --- WEAPON (2) ------- (None) > --- INVENTORY (5) ---- Light Treads Light Treads Light Treads Huge Storage Unit Field Lobotomy Kit (5) Peak State ------------ > --- POWER ------------ (None) > --- PROPULSION ------- Aluminum Leg > --- UTILITY ---------- High-capacity Storage Unit > --- WEAPON ----------- Assault Rifle Field Lobotomy Kit > --- INVENTORY -------- Ion Engine Light Treads Light Treads Light Treads Light Treads Aluminum Leg Compact Wheel Improved Heat Sink Huge Storage Unit Hacking Suite Assault Rifle [Rating: 14] Favorites ----------- Power Ion Engine Engine Ion Engine Propulsion Aluminum Leg Leg Aluminum Leg Utility High-capacity Storage Unit Device Seismic Detector Storage High-capacity Storage Unit Protection Light Armor Plating Weapon Assault Rifle Ballistic Gun Assault Rifle Launcher Grenade Launcher Special Weapon Mining Laser Build | -11 -10 -10 -10 -9 ------- Run | Yrd Mat Min Exi Min Slots Evolved . | . . . . . Power . | . . . . . Propulsion . | . . . . . Utility . | . . . . . Weapon . | . . . . . Parts Attached 12 | . 10 . . 2 Power 1 | . 1 . . . Engine 1 | . 1 . . . Core . | . . . . . Reactor . | . . . . . Propulsion 1 | . 1 . . . Treads . | . . . . . Leg 1 | . 1 . . . Wheel . | . . . . . Hover . | . . . . . Flight . | . . . . . Utility 4 | . 4 . . . Device 1 | . 1 . . . Storage 2 | . 2 . . . Processor . | . . . . . Hackware . | . . . . . Protection 1 | . 1 . . . Artifact . | . . . . . Weapon 6 | . 4 . . 2 Energy Gun . | . . . . . Energy Cannon . | . . . . . Ballistic Gun 3 | . 2 . . 1 Ballistic Cannon . | . . . . . Launcher 1 | . 1 . . . Special Weapon 2 | . 1 . . 1 Impact Weapon . | . . . . . Slashing Weapon . | . . . . . Piercing Weapon . | . . . . . Special Melee Weapon . | . . . . . Unidentified Prototypes . | . . . . . Parts Lost 8 | . 2 . . 6 Power 1 | . . . . 1 Propulsion 1 | . . . . 1 Utility 2 | . 1 . . 1 Weapon 4 | . 1 . . 3 Highest Loss Streak 6 | . 2 . . 6 To Critical Strikes . | . . . . . Average Backups 10 | . 9 12 12 12 Power 1 | . 1 1 1 1 Propulsion 5 | . 4 6 6 6 Utility 2 | . 2 3 3 3 Weapon 2 | . 2 2 2 1 Tool/Special . | . . . . . Unused Backups 9 | . 2 . . 7 Power 1 | . . . . 1 Propulsion 3 | . . . . 3 Utility 4 | . 1 . . 3 Weapon 1 | . 1 . . . Tool/Special . | . . . . . Average Slot Usage (%) 99 | . 99 100 100 94 Engine 13 | . 14 14 14 11 Leg 28 | . 28 28 28 28 Device 1 | . 2 . . . Storage 14 | . 14 14 14 14 Protection 12 | . 11 14 14 11 Ballistic Gun 23 | . 27 14 14 16 Launcher 4 | . . 13 14 11 Peak Build Rating 14 | . 8 8 9 14 Average Rating 7 | . 7 8 8 8 On Entrance 7 | 6 6 8 8 9 Avg Prop Armor Cover (%) . | . . . . . Naked Turns 2 | . . . . 2 Heaviest Build 53 | 14 52 53 53 53 Greatest Support 20 | 20 20 20 20 20 Greatest Overweight (x) 2 | . 2 2 2 2 Average Overweight (x) 1 | . 1 2 2 1 Largest Inventory Capacity 20 | . 20 20 20 20 Average Capacity 19 | . 18 20 20 18 Most Carried 13 | . 12 12 13 13 Average Carried 10 | . 9 12 12 12 Final Capacity 20 | 8 20 20 20 5 Final Carried 13 | 6 12 12 13 5 Class Distribution -------------------- 100% | Mutant Dominant Class ---------------- Mutant | -10/Materials Mutant | -10/Mines Mutant | -10/Exiles Mutant | -9/Mines Resources | -11 -10 -10 -10 -9 ----------- Run | Yrd Mat Min Exi Min Matter Collected 655 | 155 498 2 . . Remotely . | . . . . . Salvage Created 723 | . 695 . . 28 Parts 65 | . 65 . . . Haulers Intercepted 2 | . 2 . . . Recyclers Shooed 2 | . 2 . . . Parts Field Recycled . | . . . . . Retrieved Matter . | . . . . . Parts Self-Destructed . | . . . . . Prevented . | . . . . . Parts Restored . | . . . . . Kills | -11 -10 -10 -10 -9 ------- Run | Yrd Mat Min Exi Min Combat Hostiles Destroyed 25 | . 19 . . 6 Guns 14 | . 13 . . 1 AOE 11 | . 6 . . 5 Classes Destroyed 9 | . 8 . . 1 Worker 4 | . 4 . . . Builder 2 | . 2 . . . Tunneler 1 | . 1 . . . Hauler 2 | . 2 . . . Recycler 1 | . 1 . . . Operator 3 | . 3 . . . Swarmer 12 | . 12 . . . Grunt 7 | . 7 . . . Assembled 6 | . . . . 6 Best Kill Streak 6 | . 5 . . 6 Combat Bots Only 6 | . 3 . . 6 Max Kills in Single Turn 3 | . 3 . . 3 Gunslinging . | . . . . . Exploded 3 | . 2 . . 3 Melee . | . . . . . Uniques/NPCs Destroyed . | . . . . . Combat | -11 -10 -10 -10 -9 -------- Run | Yrd Mat Min Exi Min Hostile Shots Fired 119 | . 81 . . 38 Missed 33 | . 26 . . 7 Hits 86 | . 55 . . 31 Melee 2 | . . . . 2 Projectile 84 | . 55 . . 29 Part Disruptions 1 | . . . . 1 Damage Taken 1034 | . 549 . . 485 Core 258 | . 157 . . 101 Absorbed by Shields . | . . . . . Core Remaining (%) 100 | 100 . . . . Volleys Fired 62 | . 58 . . 4 Largest 2 | . 2 . . 1 Hottest 40 | . 40 . . 30 Shots Fired 113 | . 109 . . 4 Gun 105 | . 103 . . 2 Cannon . | . . . . . Launcher 8 | . 6 . . 2 Special . | . . . . . Kinetic 105 | . 103 . . 2 Thermal . | . . . . . Explosive 8 | . 6 . . 2 Electromagnetic . | . . . . . Robot Hit Streak 6 | . 6 . . 1 Robot Miss Streak 5 | . 5 . . 2 Penetration Max . | . . . . . Secondary Targets 3 | . 3 . . . Max Gunslinging Chain 1 | . 1 . . . Shots Hit Robots 60 | . 59 . . 1 Core Hits 61 | . 44 . . 17 Critical Kills . | . . . . . Critical Parts Destroyed 1 | . 1 . . . Critical Strikes 1 | . 1 . . . Destroy 1 | . 1 . . . Melee Attacks . | . . . . . Impact . | . . . . . Slashing . | . . . . . Piercing . | . . . . . Sneak Attacks . | . . . . . Combat Hostiles . | . . . . . Follow-up Attacks . | . . . . . Damage Inflicted 1814 | . 1445 4 . 365 Guns 739 | . 724 . . 15 Cannons . | . . . . . Explosions 1004 | . 655 . . 349 Melee . | . . . . . Ramming 71 | . 66 4 . 1 Kinetic 739 | . 724 . . 15 Thermal 256 | . 256 . . . Explosive 748 | . 399 . . 349 Electromagnetic . | . . . . . Impact . | . . . . . Slashing . | . . . . . Piercing . | . . . . . Highest Corruption 8 | . . . . 8 Average Corruption 5 | . . . . 5 Corruption Purged . | . . . . . Corruption Blocked . | . . . . . Overload Shots . | . . . . . Overflow Damage 44 | . 25 . . 19 Projectiles . | . . . . . Explosions 42 | . 23 . . 19 Melee 2 | . 2 . . . Knockbacks . | . . . . . Impact . | . . . . . Kinetic . | . . . . . Secondary . | . . . . . Self-Inflicted Damage 94 | . 53 . . 41 Shots 4 | . 2 . . 2 Rammed 1 | . . . . 1 Targets Rammed 12 | . 9 1 . 2 Kicked 11 | . 9 1 . 1 Crushed . | . . . . . Highest Temperature 23 | . 8 . . 23 Average Temperature 5 | . 4 . . 7 Received Heat Transfer 299 | . 99 . . 200 Siege Activations . | . . . . . Martial Activations . | . . . . . Shielding Activations . | . . . . . Robots Disrupted . | . . . . . Combat Hostiles . | . . . . . Robots Corrupted 1 | . 1 . . . Combat Hostiles . | . . . . . Parts Fried 3 | . 3 . . . Impact Corruptions 1 | . 1 . . . Robots Melted . | . . . . . Combat Hostiles . | . . . . . Parts Melted 2 | . 2 . . . Heat Transferred 200 | . 200 . . . Parts Sabotaged . | . . . . . Parts Stolen . | . . . . . Parts Stripped . | . . . . . Power Chain Reactions . | . . . . . Alert | -11 -10 -10 -10 -9 ------- Run | Yrd Mat Min Exi Min Maximum Alert Level . | . . . . . Low Security (%) 100 | . 100 100 . 100 Level 1 . | . . . . . Level 2 . | . . . . . Level 3 . | . . . . . Level 4 . | . . . . . Level 5 . | . . . . . High Security . | . . . . . Max Security . | . . . . . Peak Influence 192 | . 192 12 . 15 Initial 12 | . . 12 . . Average 57 | . 72 . . 1 Influence Increases 649 | . 634 . . 15 Destroy 0b10 Robot/C 380 | . 380 . . . Destroy 0b10 Robot/NC 65 | . 65 . . . Destroy Leader 84 | . 84 . . . Successful Hack 13 | . 13 . . . Disable Machine 45 | . 45 . . . Destroy Structure 47 | . 32 . . 15 Lose Combat Pursuer 15 | . 15 . . . Influence Decreases 649 | . 603 31 . 15 Entered New Map 19 | . . 19 . . Time Decay 615 | . 603 12 . . Lost Part 15 | . . . . 15 Squads Dispatched 4 | . 4 . . . Investigation 1 | . 1 . . . Extermination . | . . . . . Reinforcement 3 | . 3 . . . Assault . | . . . . . Garrison . | . . . . . Intercept . | . . . . . Searches Triggered . | . . . . . Construction Impeded . | . . . . . Haulers Reinforced . | . . . . . Active Scanning Responses . | . . . . . Cargo Convoy Interrupts . | . . . . . Stealth | -11 -10 -10 -10 -9 --------- Run | Yrd Mat Min Exi Min Distress Signals 3 | . 3 . . . Communications Jammed . | . . . . . Distress Signals . | . . . . . Times Spotted 60 | . 42 . . 18 Peak Tracking Total 15 | . 6 . . 15 Tactical Retreats 1 | . 1 . . . Traps | -11 -10 -10 -10 -9 ------- Run | Yrd Mat Min Exi Min Traps Triggered 1 | . 1 . . . Indirectly . | . . . . . Trap Hack Attempts . | . . . . . Triggered . | . . . . . Disarmed . | . . . . . Reprogrammed . | . . . . . Reused . | . . . . . Traps Extracted . | . . . . . Installed . | . . . . . Triggered . | . . . . . Machines | -11 -10 -10 -10 -9 ---------- Run | Yrd Mat Min Exi Min Machines Disabled 3 | . 3 . . . Max in Single Turn 1 | . 1 . . . Machines Repaired . | . . . . . Machines Dismantled . | . . . . . Machines Sabotaged . | . . . . . Overloaded Fab Kills . | . . . . . Hacking | -11 -10 -10 -10 -9 --------- Run | Yrd Mat Min Exi Min Machines Accessed 5 | . 4 . 1 . Terminals 4 | . 4 . . . Fabricators . | . . . . . Repair Stations . | . . . . . Recycling Units . | . . . . . Scanalyzers . | . . . . . Garrison Access . | . . . . . Total Hacks 13 | . 12 . 1 . Successful 8 | . 7 . 1 . Failed 5 | . 5 . . . Catastrophic . | . . . . . Database Lockouts . | . . . . . Manual 13 | . 12 . 1 . Terminals 12 | . 12 . . . Fabricators . | . . . . . Repair Stations . | . . . . . Recycling Units . | . . . . . Scanalyzers . | . . . . . Garrison Access . | . . . . . Terminal Hacks 1 | . . . 1 . Proto ID Catalog 1 | . . . 1 . Fabricator Hacks . | . . . . . Repair Station Hacks . | . . . . . Recycling Unit Hacks . | . . . . . Scanalyzer . | . . . . . Garrison Access Hacks . | . . . . . Unauthorized Hacks 7 | . 7 . . . Terminals 7 | . 7 . . . Botnet 3 | . 3 . . . Skim 4 | . 4 . . . Fabricators . | . . . . . Repair Stations . | . . . . . Recycling Units . | . . . . . Scanalyzers . | . . . . . Garrison Access . | . . . . . Data Cores Recovered . | . . . . . Used . | . . . . . Hacking Detections 4 | . 4 . . . Full Trace Events . | . . . . . Feedback Events . | . . . . . Feedback Blocked . | . . . . . Robot Schematics Acquired . | . . . . . Robots Built . | . . . . . Authchips . | . . . . . Time . | . . . . . Total Robot Build Rating . | . . . . . Part Schematics Acquired . | . . . . . Parts Built . | . . . . . Authchips . | . . . . . Time . | . . . . . Total Part Build Rating . | . . . . . Part Studies Acquired . | . . . . . Parts Repaired . | . . . . . Time . | . . . . . Parts Recycled . | . . . . . Recycled Matter . | . . . . . Retrieved Matter . | . . . . . Retrieved Components . | . . . . . Parts Scanalyzed . | . . . . . Part Schematics Acquired . | . . . . . Parts Damaged . | . . . . . Bothacking | -11 -10 -10 -10 -9 ------------ Run | Yrd Mat Min Exi Min Used RIF Installer . | . . . . . Robots Hacked . | . . . . . Non-combat . | . . . . . Combat . | . . . . . Robot Hacks Applied . | . . . . . Relay Couplers Released . | . . . . . Fabnet Peak Effective % . | . . . . . Robots Rewired . | . . . . . Allies Hacked . | . . . . . Hacks Repelled . | . . . . . Allies | -11 -10 -10 -10 -9 -------- Run | Yrd Mat Min Exi Min Total Allies . | . . . . . Largest Group . | . . . . . Highest-Rated Group . | . . . . . Highest-Rated Ally . | . . . . . Total Orders . | . . . . . Ally Attacks . | . . . . . Total Damage . | . . . . . Kills . | . . . . . Allies Corrupted . | . . . . . Allies Melted . | . . . . . Intel | -11 -10 -10 -10 -9 ------- Run | Yrd Mat Min Exi Min Active Infowar (turns) 417 | . 417 . . . Seismic 417 | . 417 . . . Robot Analysis Total . | . . . . . Derelict Logs Recovered 1 | . . 1 . . Drone Launches . | . . . . . Drone Recoveries . | . . . . . Exploration | -11 -10 -10 -10 -9 ------------- Run | Yrd Mat Min Exi Min Turns Passed 3735 | . 2520 621 550 44 Spaces Moved 1406 | 1 945 238 212 10 Core 1 | . . . . 1 Treads . | . . . . . Legs 1405 | 1 945 238 212 9 Wheels . | . . . . . Hover . | . . . . . Flight . | . . . . . Fastest Speed 50 | 120 120 260 260 50 Average Speed 245 | 120 238 260 260 239 Slowest Speed 260 | 120 260 260 260 260 Overloaded Moves . | . . . . . Propulsion Burnouts . | . . . . . Robots Hopped . | . . . . . Potential Cave-ins . | . . . . . Cave-ins Triggered . | . . . . . Exploration Rate (%) 43 | 2 97 52 61 4 Regions Visited 4 Branch Regions 3 Pre-discovered Areas . | . . . . . Known Exits Taken . | . . . . . Unknown Exits Taken 4 | 1 1 1 1 . Scrap Searched . | . . . . . Spaces Dug . | . . . . . Terrain Destroyed 50 | . 32 . . 18 Melee . | . . . . . Projectile . | . . . . . AOE 50 | . 32 . . 18 Terrain Rammed . | . . . . . Walls Destroyed . | . . . . . Machines Disabled . | . . . . . Actions | -11 -10 -10 -10 -9 --------- Run | Yrd Mat Min Exi Min Total 1564 | . 1087 239 212 26 Wait 54 | . 50 . . 4 Move 1402 | . 944 237 211 10 Hop . | . . . . . Pick Up 10 | . 9 . 1 . Fast Attach 1 | . 1 . . . Attach 4 | . 2 . . 2 Detach 1 | . . . . 1 Swap 10 | . 9 1 . . Drop 8 | . 5 . . 3 Fire 62 | . 58 . . 4 Melee . | . . . . . Ram 1 | . . . . 1 Kick 11 | . 9 1 . 1 Crush . | . . . . . Escape Stasis . | . . . . . Rewire . | . . . . . Trap . | . . . . . Miscellaneous . | . . . . . Route ------- -11/Scrapyard -10/Materials (discovered 4 exits: [*Mat x3] / [*Min]) -10/Mines (discovered 2 exits: [*Mat] / *Exi) -10/Exiles (discovered 2 exits: [*Min x2]) -9/Mines History --------- Turn | Location | Event 1 | -11/Scrapyard | Discovered new exit (range 0) 1 | -11/Scrapyard | Entered Materials 307 | -10/Materials | Build established: Mutant 675 | -10/Materials | Discovered new exit (range 15) 957 | -10/Materials | Core integrity fell below 50% 1176 | -10/Materials | Discovered new exit (range 7) 1630 | -10/Materials | Discovered new exit (range 15) 1887 | -10/Materials | Discovered new exit (range 15) 2521 | -10/Materials | Entered Mines 2697 | -10/Mines | Learned Materials trap positions 2877 | -10/Mines | Discovered new exit (range 5) 3074 | -10/Mines | Deemed a non-threat by the Exiles lab entrance 3074 | -10/Mines | Discovered new exit (range 5) 3142 | -10/Mines | Entered Exiles 3176 | -10/Exiles | Discovered new exit (range 15) 3207 | -10/Exiles | Met 8R-AWN 3252 | -10/Exiles | Met EX-HEX 3324 | -10/Exiles | Met EX-BIN 3356 | -10/Exiles | Aligned with FarCom system 3358 | -10/Exiles | Given EX-Vault access code 3431 | -10/Exiles | Opened EX-Vault 3449 | -10/Exiles | Found Field Lobotomy Kit 3502 | -10/Exiles | Warned to stay clear of 0b10 Research branches 3578 | -10/Exiles | Met EX-DEC 3671 | -10/Exiles | Discovered new exit (range 10) 3692 | -10/Exiles | Left Exiles lab with Field Lobotomy Kit 3692 | -10/Exiles | Entered Mines 3693 | -9/Mines | Assembled infested the area 3698 | -9/Mines | Assisted by a Guerilla fighting off Assembled 3735 | -9/Mines | Core integrity fell below 20% 3736 | -9/Mines | Destroyed by as-09773 with Assembled F-torch Last Messages --------------- 03720_ as-87396 destroyed. 03720_ as-92636 destroyed. 03722_ as-86414 destroyed. 03722_ Destroyed Asb. Hover Unit. 03722_ as-03507 destroyed. 03722_ as-61048 destroyed. 03723_ Grenade Launcher destroyed. 03728_ Lgt. Armor Plating destroyed. 03729_ Ion Engine destroyed. 03729_ as-87137 destroyed. 03731_ Assault Rifle destroyed. 03731_ Aluminum Leg destroyed. 03731_ System corrupted by crushing effect (+4). 03732_ Dropped Hcp. Storage Unit. 03733_ Dropped Aluminum Leg. 03734_ Dropped Assault Rifle. 03734_ Assault Rifle destroyed. 03734_ System corrupted by crushing effect (+4). 03734_ Knocked back. 03735_ Slammed into as-22441. Map ----- +----------------------------------------------------+ | ?????????????????????????????? | | ?????????????????????????????? | | ?????????????????????????????? | | ?????????????????????????????? | | ?????????????????????????????? | | ?????????????????????????????? | | ?????????????????????????????? | | ?????????????????????????????? | | ?????????????????????????????? | | ?????????????????????????????? | | ?????????????????????????????? | | ?????????????????????????????? | | ?????????????????????????????? | | ?????????????????????????????? | | ?????????????????????????????? | | ?????????????????????????????? | | ?????????????????????????????? | | ?????????????????????????????? | | ?????????????????????????????? | | ????????????????????########?? | | ????????????????????# #?? | | ????????????????????# #?? | | ????????????????????# #?? | | ???????????????g????# = ##? | | ???????????????g????# !a=a # | | ????????????????????# *=!@[aa# | | ????????????????????#####aaa # | | ???????????????????????? aa # | | ???????????????????????? # | | ???????????????????????# ! # | | ??????????????????????? #a* # | | ??????????????????????? aa # | | ?????????????????????? = # | | ?????????????????????? % ## | | ??????????????????????#######? | | ?????????????????????????????? | | ?????????????????????????????? | | ?????????????????????????????? | | ?????????????????????????????? | | ?????????????????????????????? | | ?????????????????????????????? | | ?????????????????????????????? | | ?????????????????????????????? | | ?????????????????????????????? | | ?????????????????????????????? | | ?????????????????????????????? | | ?????????????????????????????? | | ?????????????????????????????? | | ?????????????????????????????? | | ?????????????????????????????? | +----------------------------------------------------+ Best States ------------- Heat Dissipation 25 Energy Generation 10 Energy Capacity 250 Matter Stores 300 Matter Capacity 300 Sight Range 16 Terrain Scan Density 10 Armor Coverage 150 Evasion (%) 55 Item Schematics ----------------- None Robot Schematics ------------------ None Fabricated ------------ Nothing Repaired ---------- Nothing Studied --------- None Alien Tech Used ----------------- None Achievements -------------- None Challenges ------------ None Game ------ Seed ScrapVoltaicMinigun Manual? 0 Play Time 00:13:43 Cumulative 279.1 hours Start 2026.01.07 @ 21:15:13 End 2026.01.08 @ 08:29:41 Sessions 2 Manual Loads 0 Difficulty Rogue Special Mode None Game No. 357 Rogue 356 Adventurer 1 Explorer 0 Win Type - Total 2 Types 1/0/0/1/0/0/0/0/0/0 Lore% 76 Gallery% 67 Achievement% 56 Wizard Run 0 Options --------- Layout 0 ASCII 0 Keyboard 0 Movement Numpad Keybinds 0 Fullscreen 2 Font 24/Smallcaps Map View 76x50 Zoom Use 0% Tactical HUD 1 Map Filters NONE Filters NONE Steam 1 RUN: f60e9d90-6eec-4e60-9df4-ef32aafe2f0d